[Event "Early-Titled-Tuesday-Blitz-November-28-2023"]
[Site "Chess.com"]
[Date "2023.11.28"]
[Round "9"]
[White "Pastore1978"]
[Black "Crasmus"]
[Result "0-1"]
[WhiteElo "2371"]
[BlackElo "2291"]
[TimeControl "180+1"]
[EndTime "9:52:42 PST"]
[Termination "Crasmus won by resignation"]

1. e4 {[%clk 0:03:00.9]} 1... c5 {[%clk 0:03:00.9]} 2. Nf3 {[%clk 0:03:01.1]}
2... e6 {[%clk 0:03:01.3]} 3. d4 {[%clk 0:02:59.9]} 3... cxd4 {[%clk 0:03:02.2]}
4. Nxd4 {[%clk 0:03:00.7]} 4... a6 {[%clk 0:03:02.7]} 5. Bd3 {[%clk 0:03:00]}
5... Qc7 {[%clk 0:03:03]} 6. O-O {[%clk 0:02:58]} 6... Nf6 {[%clk 0:03:03.6]} 7.
Nc3 {[%clk 0:02:49.2]} 7... h5 {[%clk 0:03:03.8]} 8. Re1 {[%clk 0:02:18.8]} 8...
Ng4 {[%clk 0:03:03.6]} 9. Nf3 {[%clk 0:01:48.3]} 9... Bc5 {[%clk 0:03:00.9]} 10.
Re2 {[%clk 0:01:48.7]} 10... Nc6 {[%clk 0:03:00.3]} 11. g3 {[%clk 0:01:41]}
11... h4 {[%clk 0:02:50.7]} 12. Bf4 {[%clk 0:01:18.3]} 12... Qb6 {[%clk
0:02:19.1]} 13. Qe1 {[%clk 0:00:59.1]} 13... hxg3 {[%clk 0:02:07.3]} 14. Bxg3
{[%clk 0:00:56.1]} 14... Nd4 {[%clk 0:01:44.3]} 15. Nxd4 {[%clk 0:00:55.1]}
15... Bxd4 {[%clk 0:01:45.2]} 16. a4 {[%clk 0:00:32.7]} 16... Qxb2 {[%clk
0:01:38.9]} 17. Nd5 {[%clk 0:00:20.9]} 17... Qxa1 {[%clk 0:01:03.4]} 18. Nc7+
{[%clk 0:00:19.2]} 18... Ke7 {[%clk 0:01:01]} 19. Qxa1 {[%clk 0:00:16.3]} 19...
Bxa1 {[%clk 0:00:58.7]} 20. Nxa8 {[%clk 0:00:17]} 20... Bd4 {[%clk 0:00:53.5]}
21. Nc7 {[%clk 0:00:16.4]} 21... d6 {[%clk 0:00:43.1]} 22. c3 {[%clk 0:00:14]}
22... Bb6 {[%clk 0:00:41.5]} 23. h3 {[%clk 0:00:07.6]} 23... Ne5 {[%clk
0:00:29.1]} 24. Na8 {[%clk 0:00:07.1]} 24... Ba5 {[%clk 0:00:22.4]} 25. Bxe5
{[%clk 0:00:07]} 25... dxe5 {[%clk 0:00:22.4]} 26. Rb2 {[%clk 0:00:05.6]} 26...
Bxc3 {[%clk 0:00:17.2]} 27. Rc2 {[%clk 0:00:05.4]} 27... Ba5 {[%clk 0:00:16.2]}
28. Rc5 {[%clk 0:00:05.2]} 28... Bb4 {[%clk 0:00:13.3]} 29. Rc7+ {[%clk
0:00:05.5]} 29... Kf6 {[%clk 0:00:11.8]} 30. Nb6 {[%clk 0:00:06.2]} 30... Ba5
{[%clk 0:00:12]} 31. Rxc8 {[%clk 0:00:05.8]} 31... Rxh3 {[%clk 0:00:10.8]} 32.
Nd7+ {[%clk 0:00:03.9]} 32... Ke7 {[%clk 0:00:10.4]} 33. Nc5 {[%clk 0:00:04.4]}
33... Bb4 {[%clk 0:00:10.2]} 34. Nxb7 {[%clk 0:00:04.8]} 34... Rxd3 {[%clk
0:00:09.3]} 35. Ra8 {[%clk 0:00:03.5]} 35... Kf6 {[%clk 0:00:09.5]} 36. Rxa6
{[%clk 0:00:03.5]} 36... Rd1+ {[%clk 0:00:10.4]} 37. Kg2 {[%clk 0:00:03.6]}
37... Bc3 {[%clk 0:00:11.3]} 38. Kg3 {[%clk 0:00:03.9]} 38... Bd4 {[%clk
0:00:12.2]} 39. a5 {[%clk 0:00:04.4]} 39... Rd3+ {[%clk 0:00:12.8]} 40. f3
{[%clk 0:00:03.9]} 40... Ra3 {[%clk 0:00:13.7]} 41. Ra8 {[%clk 0:00:03.9]} 41...
Rb3 {[%clk 0:00:14.5]} 42. a6 {[%clk 0:00:03.8]} 42... Ra3 {[%clk 0:00:14.8]}
43. a7 {[%clk 0:00:03.6]} 43... Rxa7 {[%clk 0:00:14.1]} 44. Rxa7 {[%clk
0:00:03.9]} 44... Bxa7 {[%clk 0:00:15]} 45. Na5 {[%clk 0:00:04.4]} 45... Bc5
{[%clk 0:00:14.8]} 46. Nc4 {[%clk 0:00:05.1]} 46... Be7 {[%clk 0:00:15.1]} 47.
Ne3 {[%clk 0:00:05.3]} 47... Bd8 {[%clk 0:00:15.2]} 48. Ng2 {[%clk 0:00:05.8]}
48... Bc7 {[%clk 0:00:15]} 49. Ne1 {[%clk 0:00:06.2]} 49... Ke7 {[%clk
0:00:15.5]} 50. Nd3 {[%clk 0:00:06.9]} 50... f6 {[%clk 0:00:16.1]} 51. Nc5
{[%clk 0:00:07]} 51... g6 {[%clk 0:00:16.4]} 52. Nd3 {[%clk 0:00:06.8]} 52...
Bb6 {[%clk 0:00:17]} 53. Nb4 {[%clk 0:00:06.8]} 53... Kd6 {[%clk 0:00:13.7]} 54.
Nd3 {[%clk 0:00:07.2]} 54... Ba5 {[%clk 0:00:13.7]} 55. Nf2 {[%clk 0:00:07.5]}
55... Be1 {[%clk 0:00:12.7]} 56. Kg2 {[%clk 0:00:07.2]} 56... Bxf2 {[%clk
0:00:13.6]} 57. Kxf2 {[%clk 0:00:08]} 57... Kc5 {[%clk 0:00:14]} 58. Ke3 {[%clk
0:00:07.4]} 58... Kc4 {[%clk 0:00:14.3]} 59. Kf2 {[%clk 0:00:06.8]} 59... Kd3
{[%clk 0:00:14.4]} 60. Kg2 {[%clk 0:00:05.2]} 60... Ke3 {[%clk 0:00:14.9]} 61.
Kg3 {[%clk 0:00:05.8]} 61... g5 {[%clk 0:00:13.6]} 62. Kg4 {[%clk 0:00:06.6]}
62... Kf2 {[%clk 0:00:13.8]} 63. Kh5 {[%clk 0:00:06.6]} 63... Kxf3 {[%clk
0:00:14.1]} 64. Kg6 {[%clk 0:00:07.4]} 64... Kxe4 {[%clk 0:00:14.5]} 65. Kxf6
{[%clk 0:00:08.2]} 65... g4 {[%clk 0:00:15]} 0-1

[Event "Early-Titled-Tuesday-Blitz-November-28-2023"]
[Site "Chess.com"]
[Date "2023.11.28"]
[Round "9"]
[White "kunaevchess"]
[Black "katharinareinecke"]
[Result "0-1"]
[WhiteElo "2180"]
[BlackElo "2008"]
[TimeControl "180+1"]
[EndTime "9:52:44 PST"]
[Termination "katharinareinecke won by checkmate"]

1. e4 {[%clk 0:02:54.7]} 1... c6 {[%clk 0:02:58.3]} 2. d4 {[%clk 0:02:53.3]}
2... d5 {[%clk 0:02:55.4]} 3. f3 {[%clk 0:02:53.3]} 3... g6 {[%clk 0:02:51.9]}
4. Nc3 {[%clk 0:02:49.7]} 4... Bg7 {[%clk 0:02:51.1]} 5. Be3 {[%clk 0:02:46.1]}
5... e6 {[%clk 0:02:41.1]} 6. Qd2 {[%clk 0:02:37.9]} 6... h5 {[%clk 0:02:34.8]}
7. Bd3 {[%clk 0:02:26.8]} 7... Ne7 {[%clk 0:02:32.3]} 8. Nge2 {[%clk 0:02:25.4]}
8... Nd7 {[%clk 0:02:29.1]} 9. O-O {[%clk 0:02:20]} 9... Nb6 {[%clk 0:02:16.2]}
10. b3 {[%clk 0:02:18]} 10... Nd7 {[%clk 0:02:13.4]} 11. a4 {[%clk 0:02:16.6]}
11... b6 {[%clk 0:02:12.6]} 12. Rfb1 {[%clk 0:02:05.1]} 12... Bb7 {[%clk
0:02:12.1]} 13. b4 {[%clk 0:02:03.9]} 13... O-O {[%clk 0:02:06.1]} 14. a5 {[%clk
0:01:56.8]} 14... b5 {[%clk 0:02:02.8]} 15. Nc1 {[%clk 0:01:52.3]} 15... a6
{[%clk 0:02:02.3]} 16. Nb3 {[%clk 0:01:51.8]} 16... Qc7 {[%clk 0:01:54.4]} 17.
Nc5 {[%clk 0:01:49.3]} 17... Nxc5 {[%clk 0:01:54.6]} 18. dxc5 {[%clk 0:01:50.2]}
18... Rad8 {[%clk 0:01:51.9]} 19. Ne2 {[%clk 0:01:41.9]} 19... Bxa1 {[%clk
0:01:44.7]} 20. Rxa1 {[%clk 0:01:41.4]} 20... Kh7 {[%clk 0:01:37.2]} 21. Bd4
{[%clk 0:01:28.7]} 21... e5 {[%clk 0:01:29.5]} 22. Be3 {[%clk 0:01:23.2]} 22...
d4 {[%clk 0:01:29.3]} 23. Bg5 {[%clk 0:01:22]} 23... f6 {[%clk 0:01:23.8]} 24.
Bh4 {[%clk 0:01:21.3]} 24... Ng8 {[%clk 0:01:20.9]} 25. f4 {[%clk 0:01:15.5]}
25... Rde8 {[%clk 0:01:11.9]} 26. Rf1 {[%clk 0:01:08.5]} 26... Qg7 {[%clk
0:01:09.7]} 27. fxe5 {[%clk 0:01:07]} 27... fxe5 {[%clk 0:01:04.8]} 28. Qg5
{[%clk 0:00:59.3]} 28... Rxf1+ {[%clk 0:01:03.2]} 29. Kxf1 {[%clk 0:00:59]}
29... Rf8+ {[%clk 0:00:59.4]} 30. Kg1 {[%clk 0:00:58.3]} 30... Qf6 {[%clk
0:00:56.9]} 31. Qxf6 {[%clk 0:00:54]} 31... Nxf6 {[%clk 0:00:57]} 32. c3 {[%clk
0:00:54.9]} 32... dxc3 {[%clk 0:00:52.8]} 33. Nxc3 {[%clk 0:00:54.3]} 33... Ng4
{[%clk 0:00:51]} 34. Bg5 {[%clk 0:00:51.6]} 34... Bc8 {[%clk 0:00:48.7]} 35. h3
{[%clk 0:00:50.4]} 35... Nf6 {[%clk 0:00:46.5]} 36. Bc2 {[%clk 0:00:45.3]} 36...
Be6 {[%clk 0:00:46.1]} 37. Nd1 {[%clk 0:00:33.1]} 37... Bc4 {[%clk 0:00:39.8]}
38. Ne3 {[%clk 0:00:25.4]} 38... Be2 {[%clk 0:00:39.3]} 39. Kf2 {[%clk
0:00:20.5]} 39... Nxe4+ {[%clk 0:00:30.4]} 40. Kxe2 {[%clk 0:00:20]} 40... Nxg5
{[%clk 0:00:30.5]} 41. h4 {[%clk 0:00:20.2]} 41... Ne6 {[%clk 0:00:29.4]} 42.
Be4 {[%clk 0:00:20.3]} 42... Nf4+ {[%clk 0:00:29.2]} 43. Kd2 {[%clk 0:00:20.2]}
43... Rd8+ {[%clk 0:00:26]} 44. Kc2 {[%clk 0:00:20.1]} 44... Nd5 {[%clk
0:00:25.9]} 45. Nd1 {[%clk 0:00:08.5]} 45... Nxb4+ {[%clk 0:00:25.6]} 46. Kb3
{[%clk 0:00:08.1]} 46... Nd3 {[%clk 0:00:23.5]} 47. Nc3 {[%clk 0:00:06.2]} 47...
Nxc5+ {[%clk 0:00:23.5]} 48. Kb4 {[%clk 0:00:05.4]} 48... Nxe4 {[%clk
0:00:23.5]} 49. Nxe4 {[%clk 0:00:06.3]} 49... Rd4+ {[%clk 0:00:23.1]} 50. Kc5
{[%clk 0:00:07.2]} 50... Rxe4 {[%clk 0:00:23.1]} 51. Kxc6 {[%clk 0:00:08.1]}
51... Ra4 {[%clk 0:00:22.6]} 52. Kb6 {[%clk 0:00:09]} 52... b4 {[%clk
0:00:20.6]} 53. Kxa6 {[%clk 0:00:09.9]} 53... b3 {[%clk 0:00:20.7]} 54. Kb6
{[%clk 0:00:10.8]} 54... b2 {[%clk 0:00:20.4]} 55. a6 {[%clk 0:00:11.7]} 55...
Rxa6+ {[%clk 0:00:20.5]} 56. Kxa6 {[%clk 0:00:11]} 56... b1=Q {[%clk 0:00:20.4]}
57. Ka5 {[%clk 0:00:11.9]} 57... Qe4 {[%clk 0:00:20]} 58. Ka6 {[%clk 0:00:11.4]}
58... Qxg2 {[%clk 0:00:20.1]} 59. Ka7 {[%clk 0:00:12.3]} 59... Qg4 {[%clk
0:00:20.1]} 60. Ka8 {[%clk 0:00:13.2]} 60... Qxh4 {[%clk 0:00:20.3]} 61. Ka7
{[%clk 0:00:14.1]} 61... e4 {[%clk 0:00:20.6]} 62. Ka6 {[%clk 0:00:15]} 62... e3
{[%clk 0:00:21.1]} 63. Ka5 {[%clk 0:00:15.9]} 63... e2 {[%clk 0:00:21.4]} 64.
Ka6 {[%clk 0:00:15.5]} 64... e1=Q {[%clk 0:00:20.5]} 65. Ka7 {[%clk 0:00:16.4]}
65... Qee7+ {[%clk 0:00:18]} 66. Ka8 {[%clk 0:00:17.3]} 66... Qa4+ {[%clk
0:00:17.3]} 67. Kb8 {[%clk 0:00:16.7]} 67... Qb5+ {[%clk 0:00:17.3]} 68. Kc8
{[%clk 0:00:16.8]} 68... Qbd7+ {[%clk 0:00:16.9]} 69. Kb8 {[%clk 0:00:17.7]}
69... Qb7# {[%clk 0:00:17]} 0-1

[Event "Early-Titled-Tuesday-Blitz-November-28-2023"]
[Site "Chess.com"]
[Date "2023.11.28"]
[Round "9"]
[White "Leonid_Starozhilov"]
[Black "Bauman_Guy"]
[Result "0-1"]
[WhiteElo "2749"]
[BlackElo "2896"]
[TimeControl "180+1"]
[EndTime "9:52:45 PST"]
[Termination "Bauman_Guy won by resignation"]

1. e4 {[%clk 0:03:00.9]} 1... c5 {[%clk 0:02:59.8]} 2. Nf3 {[%clk 0:02:59.1]}
2... d6 {[%clk 0:03:00]} 3. d4 {[%clk 0:02:58.9]} 3... cxd4 {[%clk 0:03:00.9]}
4. Nxd4 {[%clk 0:02:57.6]} 4... Nf6 {[%clk 0:03:01.3]} 5. Nc3 {[%clk 0:02:55.3]}
5... a6 {[%clk 0:03:01.7]} 6. h3 {[%clk 0:02:55.9]} 6... e5 {[%clk 0:03:00.7]}
7. Nde2 {[%clk 0:02:56.6]} 7... h5 {[%clk 0:03:00.4]} 8. Bg5 {[%clk 0:02:54.1]}
8... Be6 {[%clk 0:03:00.4]} 9. a4 {[%clk 0:02:46.6]} 9... Nbd7 {[%clk
0:02:54.6]} 10. g3 {[%clk 0:02:39]} 10... Be7 {[%clk 0:02:54.1]} 11. Be3 {[%clk
0:02:29.1]} 11... Rc8 {[%clk 0:02:51.3]} 12. Bg2 {[%clk 0:02:29]} 12... O-O
{[%clk 0:02:46.4]} 13. O-O {[%clk 0:02:27.2]} 13... Nb6 {[%clk 0:02:46.4]} 14.
b3 {[%clk 0:02:26.9]} 14... d5 {[%clk 0:02:46.5]} 15. Bxb6 {[%clk 0:02:01.6]}
15... Qxb6 {[%clk 0:02:47.4]} 16. Nxd5 {[%clk 0:02:01.1]} 16... Bxd5 {[%clk
0:02:36.7]} 17. exd5 {[%clk 0:02:02]} 17... e4 {[%clk 0:02:28.7]} 18. a5 {[%clk
0:01:46.9]} 18... Qc7 {[%clk 0:02:27]} 19. c4 {[%clk 0:01:43.1]} 19... Bb4
{[%clk 0:02:25.9]} 20. Kh1 {[%clk 0:01:31.7]} 20... Rfd8 {[%clk 0:02:23.1]} 21.
Nd4 {[%clk 0:01:23]} 21... Bxa5 {[%clk 0:02:17]} 22. Qc1 {[%clk 0:01:12.3]}
22... Qe5 {[%clk 0:02:03.4]} 23. Rxa5 {[%clk 0:00:58]} 23... Qxd4 {[%clk
0:02:03.1]} 24. Qe3 {[%clk 0:00:56.9]} 24... Qxe3 {[%clk 0:01:54.4]} 25. fxe3
{[%clk 0:00:56.2]} 25... b5 {[%clk 0:01:55.3]} 26. cxb5 {[%clk 0:00:31.6]} 26...
axb5 {[%clk 0:01:56.2]} 27. Rxb5 {[%clk 0:00:31.9]} 27... Rc3 {[%clk 0:01:55.8]}
28. Re1 {[%clk 0:00:28.2]} 28... g6 {[%clk 0:01:49.7]} 29. Kg1 {[%clk
0:00:21.7]} 29... Kg7 {[%clk 0:01:21]} 30. Kf2 {[%clk 0:00:21.7]} 30... Ra8
{[%clk 0:01:21.5]} 31. Re2 {[%clk 0:00:18.5]} 31... Rd3 {[%clk 0:01:18.3]} 32.
Rb4 {[%clk 0:00:16.4]} 32... Re8 {[%clk 0:01:18.3]} 33. Rd4 {[%clk 0:00:15.7]}
33... Rxb3 {[%clk 0:01:14.4]} 34. d6 {[%clk 0:00:16.3]} 34... Rb6 {[%clk
0:01:13]} 35. d7 {[%clk 0:00:15.2]} 35... Rd8 {[%clk 0:01:13.1]} 36. Red2 {[%clk
0:00:15]} 36... Re6 {[%clk 0:01:10.1]} 37. Kg1 {[%clk 0:00:13.9]} 37... Re7
{[%clk 0:01:10.4]} 38. Kf2 {[%clk 0:00:13.8]} 38... Kf8 {[%clk 0:01:09.3]} 39.
Kg1 {[%clk 0:00:13.8]} 39... Rdxd7 {[%clk 0:01:06.1]} 40. Rxd7 {[%clk
0:00:13.9]} 40... Nxd7 {[%clk 0:01:07]} 41. Bxe4 {[%clk 0:00:13.3]} 41... Nf6
{[%clk 0:01:07.2]} 42. Bf3 {[%clk 0:00:11.2]} 42... Rxe3 {[%clk 0:01:07.6]} 43.
Kf2 {[%clk 0:00:11.8]} 43... Rc3 {[%clk 0:01:08.2]} 44. g4 {[%clk 0:00:10.4]}
44... h4 {[%clk 0:01:07.7]} 45. g5 {[%clk 0:00:08.3]} 45... Nh7 {[%clk
0:01:03.5]} 46. Rd5 {[%clk 0:00:08.7]} 46... Kg7 {[%clk 0:01:02.8]} 47. Bg4
{[%clk 0:00:05.8]} 47... Rg3 {[%clk 0:01:00.7]} 48. Ke2 {[%clk 0:00:04.9]} 48...
Nf8 {[%clk 0:00:58.2]} 49. Kf2 {[%clk 0:00:04.4]} 49... Ne6 {[%clk 0:00:56.5]}
50. Bxe6 {[%clk 0:00:04]} 50... fxe6 {[%clk 0:00:57.4]} 51. Re5 {[%clk
0:00:04.3]} 51... Kf7 {[%clk 0:00:57.2]} 52. Re4 {[%clk 0:00:03]} 52... Rxh3
{[%clk 0:00:56.5]} 53. Kg2 {[%clk 0:00:03.6]} 53... Rg3+ {[%clk 0:00:54.9]} 54.
Kf2 {[%clk 0:00:04]} 54... Rxg5 {[%clk 0:00:53.7]} 55. Rxh4 {[%clk 0:00:04.7]}
55... Kf6 {[%clk 0:00:54.4]} 56. Kf3 {[%clk 0:00:04.4]} 56... Rf5+ {[%clk
0:00:54.4]} 57. Ke4 {[%clk 0:00:04.6]} 57... e5 {[%clk 0:00:53.1]} 58. Rh8
{[%clk 0:00:05]} 58... Rf4+ {[%clk 0:00:53.3]} 59. Ke3 {[%clk 0:00:05.1]} 59...
g5 {[%clk 0:00:49.2]} 60. Re8 {[%clk 0:00:04]} 60... Kf5 {[%clk 0:00:49.1]} 61.
Re7 {[%clk 0:00:03]} 61... g4 {[%clk 0:00:46.6]} 62. Rf7+ {[%clk 0:00:02.4]}
62... Kg5 {[%clk 0:00:46.3]} 63. Rg7+ {[%clk 0:00:02.9]} 63... Kh4 {[%clk
0:00:46.1]} 64. Re7 {[%clk 0:00:02]} 64... Kg3 {[%clk 0:00:44.9]} 65. Rxe5
{[%clk 0:00:02]} 65... Rf8 {[%clk 0:00:44.6]} 66. Re7 {[%clk 0:00:01.1]} 66...
Kg2 {[%clk 0:00:44.8]} 67. Ke2 {[%clk 0:00:01.7]} 67... g3 {[%clk 0:00:45.1]}
68. Re6 {[%clk 0:00:02.2]} 68... Kg1 {[%clk 0:00:45.2]} 69. Re7 {[%clk
0:00:02.7]} 69... g2 {[%clk 0:00:45.7]} 70. Re6 {[%clk 0:00:03.1]} 70... Rf5
{[%clk 0:00:46]} 71. Ke3 {[%clk 0:00:02.6]} 71... Kh2 {[%clk 0:00:43.2]} 72.
Rh6+ {[%clk 0:00:02.4]} 72... Kg1 {[%clk 0:00:41.7]} 73. Ke2 {[%clk 0:00:02.6]}
73... Re5+ {[%clk 0:00:41.7]} 74. Kd2 {[%clk 0:00:02.2]} 74... Kf2 {[%clk
0:00:41.1]} 75. Rf6+ {[%clk 0:00:02.8]} 75... Kg3 {[%clk 0:00:41.7]} 76. Rg6+
{[%clk 0:00:03.5]} 76... Kf3 {[%clk 0:00:42.3]} 77. Rf6+ {[%clk 0:00:03.9]}
77... Kg4 {[%clk 0:00:42.6]} 0-1

[Event "Early-Titled-Tuesday-Blitz-November-28-2023"]
[Site "Chess.com"]
[Date "2023.11.28"]
[Round "9"]
[White "Sychev_on_YouTube"]
[Black "jens1102"]
[Result "1/2-1/2"]
[WhiteElo "2891"]
[BlackElo "2634"]
[TimeControl "180+1"]
[EndTime "9:52:45 PST"]
[Termination "Game drawn by repetition"]

1. e4 {[%clk 0:03:00.9]} 1... c5 {[%clk 0:02:58.5]} 2. Nf3 {[%clk 0:03:01.2]}
2... Nc6 {[%clk 0:02:59.1]} 3. d4 {[%clk 0:03:01.4]} 3... cxd4 {[%clk 0:03:00]}
4. Nxd4 {[%clk 0:03:02]} 4... Nf6 {[%clk 0:03:00.8]} 5. Nc3 {[%clk 0:03:02.4]}
5... e5 {[%clk 0:03:01.5]} 6. Ndb5 {[%clk 0:03:02.7]} 6... d6 {[%clk 0:03:02.3]}
7. Bg5 {[%clk 0:03:02.7]} 7... a6 {[%clk 0:03:03]} 8. Na3 {[%clk 0:03:02.5]}
8... b5 {[%clk 0:03:03.7]} 9. Bxf6 {[%clk 0:03:03.2]} 9... gxf6 {[%clk
0:03:03.7]} 10. Nd5 {[%clk 0:03:03.8]} 10... f5 {[%clk 0:03:04.5]} 11. g3 {[%clk
0:03:03.8]} 11... fxe4 {[%clk 0:03:04.9]} 12. Bg2 {[%clk 0:03:03.7]} 12... Bg7
{[%clk 0:03:05.6]} 13. Bxe4 {[%clk 0:03:03.6]} 13... Be6 {[%clk 0:03:05.4]} 14.
Qh5 {[%clk 0:03:03.6]} 14... h6 {[%clk 0:03:06]} 15. c3 {[%clk 0:03:01.8]} 15...
O-O {[%clk 0:03:06.4]} 16. Rd1 {[%clk 0:02:57.5]} 16... f5 {[%clk 0:03:05.7]}
17. Qg6 {[%clk 0:02:28.8]} 17... Qe8 {[%clk 0:02:28.9]} 18. Qxe8 {[%clk
0:02:25.4]} 18... Raxe8 {[%clk 0:02:29.8]} 19. Nf6+ {[%clk 0:02:10.3]} 19...
Bxf6 {[%clk 0:02:22.6]} 20. Bxc6 {[%clk 0:02:09.8]} 20... Rd8 {[%clk 0:02:22.6]}
21. Bb7 {[%clk 0:01:55.4]} 21... Bxa2 {[%clk 0:02:16.6]} 22. Bxa6 {[%clk
0:01:53.2]} 22... b4 {[%clk 0:02:17.1]} 23. cxb4 {[%clk 0:01:51.6]} 23... e4
{[%clk 0:02:17.6]} 24. Bc4+ {[%clk 0:01:40.7]} 24... Bxc4 {[%clk 0:02:17.1]} 25.
Nxc4 {[%clk 0:01:41]} 25... d5 {[%clk 0:02:18]} 26. Ne3 {[%clk 0:01:40.6]} 26...
d4 {[%clk 0:02:09.6]} 27. Nxf5 {[%clk 0:01:38.4]} 27... d3 {[%clk 0:02:04.6]}
28. Nxh6+ {[%clk 0:01:33.6]} 28... Kh7 {[%clk 0:02:03.5]} 29. Ng4 {[%clk
0:01:31.4]} 29... Bxb2 {[%clk 0:02:02.5]} 30. O-O {[%clk 0:01:28.9]} 30... d2
{[%clk 0:02:01.5]} 31. Kg2 {[%clk 0:01:16.6]} 31... Bc3 {[%clk 0:01:56.6]} 32.
b5 {[%clk 0:01:16.9]} 32... Rf5 {[%clk 0:01:28.1]} 33. Rb1 {[%clk 0:01:06.6]}
33... Rb8 {[%clk 0:01:17.9]} 34. b6 {[%clk 0:01:05.5]} 34... Rc5 {[%clk
0:01:05.7]} 35. f3 {[%clk 0:00:42.6]} 35... exf3+ {[%clk 0:00:51.9]} 36. Rxf3
{[%clk 0:00:40.7]} 36... Rxb6 {[%clk 0:00:29.3]} 37. Rd1 {[%clk 0:00:26.5]}
37... Re6 {[%clk 0:00:28.7]} 38. Nf2 {[%clk 0:00:19.9]} 38... Re2 {[%clk
0:00:24.9]} 39. Kf1 {[%clk 0:00:14.5]} 39... Re1+ {[%clk 0:00:24.5]} 40. Kg2
{[%clk 0:00:14.7]} 40... Re2 {[%clk 0:00:25.2]} 41. Kf1 {[%clk 0:00:14.7]} 41...
Re1+ {[%clk 0:00:25.7]} 42. Kg2 {[%clk 0:00:15]} 42... Ba5 {[%clk 0:00:19.3]}
43. Rd3 {[%clk 0:00:12.1]} 43... Re2 {[%clk 0:00:17.7]} 44. Kf1 {[%clk
0:00:11.1]} 44... Re1+ {[%clk 0:00:18]} 45. Kg2 {[%clk 0:00:11.2]} 45... Rc2
{[%clk 0:00:17.8]} 46. Rd7+ {[%clk 0:00:08.2]} 46... Kg6 {[%clk 0:00:16.5]} 47.
Rd6+ {[%clk 0:00:08.4]} 47... Kf7 {[%clk 0:00:16.5]} 48. Rd5 {[%clk 0:00:08.5]}
48... Bc3 {[%clk 0:00:16.4]} 49. Rd3 {[%clk 0:00:08.4]} 49... Bb4 {[%clk
0:00:16.4]} 50. Rd4 {[%clk 0:00:08.7]} 50... Bc3 {[%clk 0:00:15.4]} 51. Rd3
{[%clk 0:00:09.1]} 51... Ba5 {[%clk 0:00:12.5]} 52. Rd5 {[%clk 0:00:09.2]} 52...
Ra2 {[%clk 0:00:11.2]} 53. Rxa5 {[%clk 0:00:07.4]} 53... Rxa5 {[%clk 0:00:07.7]}
54. Rxd2 {[%clk 0:00:07.6]} 54... Raa1 {[%clk 0:00:07.9]} 55. Rd3 {[%clk
0:00:06.6]} 55... Re2 {[%clk 0:00:07.4]} 56. Rf3+ {[%clk 0:00:05.8]} 56... Ke6
{[%clk 0:00:07.2]} 57. g4 {[%clk 0:00:05.3]} 57... Ra4 {[%clk 0:00:06.4]} 58.
Kg3 {[%clk 0:00:05.1]} 58... Ra1 {[%clk 0:00:06.9]} 59. h4 {[%clk 0:00:04.8]}
59... Rg1+ {[%clk 0:00:07.1]} 60. Kf4 {[%clk 0:00:04.5]} 60... Rf1 {[%clk
0:00:06.7]} 61. Kg3 {[%clk 0:00:03.6]} 61... Rg1+ {[%clk 0:00:07]} 62. Kf4
{[%clk 0:00:04.1]} 62... Rf1 {[%clk 0:00:07.4]} 63. Kg3 {[%clk 0:00:04.6]} 63...
Rg1+ {[%clk 0:00:07.9]} 1/2-1/2

[Event "Early-Titled-Tuesday-Blitz-November-28-2023"]
[Site "Chess.com"]
[Date "2023.11.28"]
[Round "9"]
[White "millenium19"]
[Black "marvinguevara"]
[Result "1-0"]
[WhiteElo "2483"]
[BlackElo "2180"]
[TimeControl "180+1"]
[EndTime "9:52:46 PST"]
[Termination "millenium19 won on time"]

1. e4 {[%clk 0:02:35]} 1... c5 {[%clk 0:02:59.5]} 2. Nf3 {[%clk 0:02:35]} 2...
Nc6 {[%clk 0:02:59.7]} 3. Bb5 {[%clk 0:02:35]} 3... g6 {[%clk 0:02:59.2]} 4. O-O
{[%clk 0:02:34.8]} 4... Bg7 {[%clk 0:02:59.4]} 5. Re1 {[%clk 0:02:35.2]} 5...
Nf6 {[%clk 0:02:56.9]} 6. e5 {[%clk 0:02:35]} 6... Nd5 {[%clk 0:02:56.3]} 7. Nc3
{[%clk 0:02:35.4]} 7... Nc7 {[%clk 0:02:56]} 8. Bxc6 {[%clk 0:02:35.3]} 8...
dxc6 {[%clk 0:02:55.6]} 9. Ne4 {[%clk 0:02:35.6]} 9... Ne6 {[%clk 0:02:55]} 10.
d3 {[%clk 0:02:35.3]} 10... O-O {[%clk 0:02:54.1]} 11. Be3 {[%clk 0:02:35.8]}
11... b6 {[%clk 0:02:53.3]} 12. Qd2 {[%clk 0:02:36.3]} 12... Nd4 {[%clk
0:02:45.1]} 13. Nxd4 {[%clk 0:02:32.8]} 13... cxd4 {[%clk 0:02:44.2]} 14. Bh6
{[%clk 0:02:32.4]} 14... Bf5 {[%clk 0:02:34.5]} 15. Bxg7 {[%clk 0:02:30.8]}
15... Kxg7 {[%clk 0:02:34.3]} 16. Ng3 {[%clk 0:02:29.8]} 16... Be6 {[%clk
0:02:32.7]} 17. a4 {[%clk 0:02:27.7]} 17... h5 {[%clk 0:02:23.9]} 18. Qf4 {[%clk
0:02:09.8]} 18... Rh8 {[%clk 0:02:16.3]} 19. h4 {[%clk 0:02:02.1]} 19... Bg4
{[%clk 0:02:07.6]} 20. Ne4 {[%clk 0:01:46.3]} 20... Be6 {[%clk 0:01:57.6]} 21.
Ng5 {[%clk 0:01:43.5]} 21... Rf8 {[%clk 0:01:41.6]} 22. b4 {[%clk 0:01:05.9]}
22... a5 {[%clk 0:01:30.1]} 23. Re4 {[%clk 0:00:52.2]} 23... c5 {[%clk
0:01:21.3]} 24. bxc5 {[%clk 0:00:51.8]} 24... bxc5 {[%clk 0:01:21]} 25. Rb1
{[%clk 0:00:51.6]} 25... Rb8 {[%clk 0:01:20.3]} 26. Ree1 {[%clk 0:00:51.3]}
26... Qd5 {[%clk 0:01:13.3]} 27. Qd2 {[%clk 0:00:45.1]} 27... Rb4 {[%clk
0:01:08.4]} 28. c3 {[%clk 0:00:36]} 28... Rxb1 {[%clk 0:01:06.3]} 29. Rxb1
{[%clk 0:00:34.1]} 29... Qxe5 {[%clk 0:01:05.8]} 30. cxd4 {[%clk 0:00:34.2]}
30... Qxd4 {[%clk 0:01:04.5]} 31. Qxa5 {[%clk 0:00:32.7]} 31... Qxd3 {[%clk
0:01:02.9]} 32. Re1 {[%clk 0:00:27.3]} 32... c4 {[%clk 0:00:53.5]} 33. Qe5+
{[%clk 0:00:23.8]} 33... Kg8 {[%clk 0:00:41.1]} 34. Nxe6 {[%clk 0:00:22.3]}
34... fxe6 {[%clk 0:00:41.2]} 35. Qxe6+ {[%clk 0:00:22.4]} 35... Rf7 {[%clk
0:00:41.3]} 36. Re3 {[%clk 0:00:18.3]} 36... Qd1+ {[%clk 0:00:38.5]} 37. Kh2
{[%clk 0:00:18.4]} 37... Qb1 {[%clk 0:00:31.5]} 38. Rf3 {[%clk 0:00:17.5]} 38...
Qb8+ {[%clk 0:00:29.3]} 39. g3 {[%clk 0:00:17]} 39... Qf8 {[%clk 0:00:25.6]} 40.
Qxg6+ {[%clk 0:00:17.1]} 40... Qg7 {[%clk 0:00:25.2]} 41. Qe6 {[%clk 0:00:15.2]}
41... c3 {[%clk 0:00:22.5]} 42. a5 {[%clk 0:00:14.7]} 42... c2 {[%clk 0:00:22]}
43. Rxf7 {[%clk 0:00:12.6]} 43... Qxf7 {[%clk 0:00:20.1]} 44. Qc8+ {[%clk
0:00:12.8]} 44... Kg7 {[%clk 0:00:17.6]} 45. Qxc2 {[%clk 0:00:13.3]} 45... Qd5
{[%clk 0:00:16.5]} 46. a6 {[%clk 0:00:12]} 46... Qa8 {[%clk 0:00:11.8]} 47. Qc3+
{[%clk 0:00:11.7]} 47... Kf7 {[%clk 0:00:11.3]} 48. Qb3+ {[%clk 0:00:10.6]}
48... Kf6 {[%clk 0:00:08.7]} 49. Qb7 {[%clk 0:00:10.9]} 49... Qd8 {[%clk
0:00:08.3]} 50. a7 {[%clk 0:00:11.4]} 50... Qd4 {[%clk 0:00:08]} 51. Qf3+ {[%clk
0:00:11]} 51... Ke6 {[%clk 0:00:03.6]} 52. a8=Q {[%clk 0:00:10.8]} 1-0